[Event "2026 European Womens Championship"]
[Site "Batumi, GE"]
[Date "2026.05.27"]
[Round "3"]
[White "Aghaverdiyeva, Maryam"]
[Black "Hrebenshchykova, Yelyzaveta"]
[Result "0-1"]
[Board "44"]
[TimeControl "5400+30"]
[WhiteFideId "13452509"]
[BlackFideId "14159899"]
[WhiteElo "2103"]
[BlackElo "2309"]
[WhiteTitle "WFM"]
[BlackTitle "WGM"]
[WhiteClock "0:01:07"]
[BlackClock "0:02:24"]
[Variant "Standard"]

1. e4 {[%clk 1:30:36]}  c5 {[%clk 1:30:58]} 2. Nf3 {[%clk 1:30:40]}  d6 {[%clk 1:31:24]} 3. d4 {[%clk 1:30:47]}  cxd4 {[%clk 1:31:51]}
4. Nxd4 {[%clk 1:31:06]}  Nf6 {[%clk 1:32:17]} 5. Nc3 {[%clk 1:31:05]}  Nc6 {[%clk 1:32:44]} 6. Bg5 {[%clk 1:30:54]}  e6 {[%clk 1:32:59]}
7. Qd2 {[%clk 1:31:16]}  a6 {[%clk 1:32:42]} 8. O-O-O {[%clk 1:31:20]}  Bd7 {[%clk 1:33:00]} 9. f4 {[%clk 1:31:16]}  h6 {[%clk 1:31:43]}
10. Bh4 {[%clk 1:29:43]}  Be7 {[%clk 1:31:57]} 11. Nf3 {[%clk 1:18:46]}  Qc7 {[%clk 1:26:34]} 12. e5 {[%clk 1:11:18]}  dxe5 {[%clk 1:24:08]}
13. fxe5 {[%clk 1:11:26]}  Nd5 {[%clk 1:24:34]} 14. Nxd5 {[%clk 1:08:11]}  exd5 {[%clk 1:25:00]} 15. Bxe7 {[%clk 1:06:30]}  Nxe7 {[%clk 1:25:12]}
16. Kb1 {[%clk 1:05:15]}  O-O {[%clk 1:14:24]} 17. c3 {[%clk 1:01:17]}  b5 {[%clk 0:40:21]} 18. Bd3 {[%clk 0:58:17]}  Rab8 {[%clk 0:34:34]}
19. Qf4 {[%clk 0:47:08]}  a5 {[%clk 0:33:12]} 20. Rhf1 {[%clk 0:40:58]}  b4 {[%clk 0:24:26]} 21. c4 {[%clk 0:39:56]}  dxc4 {[%clk 0:24:52]}
22. Bxc4 {[%clk 0:35:43]}  Bf5+ {[%clk 0:23:02]} 23. Ka1 {[%clk 0:32:37]}  Ng6 {[%clk 0:23:02]} 24. Qxf5 {[%clk 0:25:39]}  Qxc4 {[%clk 0:23:28]}
25. Rfe1 {[%clk 0:25:28]}  Rb5 {[%clk 0:13:40]} 26. Rc1 {[%clk 0:21:09]}  Qe6 {[%clk 0:12:47]} 27. Qxe6 {[%clk 0:08:18]}  fxe6 {[%clk 0:13:15]}
28. b3 {[%clk 0:05:04]}  Nf4 {[%clk 0:12:06]} 29. Nd4 {[%clk 0:04:12]}  Rd5 {[%clk 0:08:01]} 30. Nc6 {[%clk 0:04:29]}  Rd2 {[%clk 0:06:23]}
31. Red1 {[%clk 0:01:03]}  Rxg2 {[%clk 0:06:28]} 32. Nxa5 {[%clk 0:00:35]}  Nd5 {[%clk 0:06:41]} 33. Rg1 {[%clk 0:00:38]}  Rxh2 {[%clk 0:06:40]}
34. Rh1 {[%clk 0:00:59]}  Rg2 {[%clk 0:00:53]} 35. Rhg1 {[%clk 0:00:53]}  Rh2 {[%clk 0:01:20]} 36. Rh1 {[%clk 0:01:18]}  Rhf2 {[%clk 0:00:34]}
37. Nc4 {[%clk 0:00:32]}  Nc3 {[%clk 0:00:42]} 38. Nb2 {[%clk 0:00:56]}  Ra8 {[%clk 0:01:05]} 39. a4 {[%clk 0:01:00]}  bxa3 {[%clk 0:01:31]}
40. Rxc3 {[%clk 0:00:51]}  axb2+ {[%clk 0:01:57]} 41. Kb1 {[%clk 0:01:07]}  Ra1# {[%clk 0:02:24]} 0-1

[Event "2026 European Womens Championship"]
[Site "Batumi, GE"]
[Date "2026.05.27"]
[Round "3"]
[White "Liashkevich, Lizaveta"]
[Black "Jarocka, Liwia"]
[Result "1-0"]
[Board "45"]
[TimeControl "5400+30"]
[WhiteFideId "13518658"]
[BlackFideId "21807558"]
[WhiteElo "2079"]
[BlackElo "2288"]
[WhiteTitle "WFM"]
[BlackTitle "FM"]
[WhiteClock "0:06:14"]
[BlackClock "0:16:07"]
[Variant "Standard"]

1. d4 {[%clk 1:30:54]}  Nf6 {[%clk 1:30:47]} 2. c4 {[%clk 1:31:16]}  e6 {[%clk 1:31:05]} 3. Nf3 {[%clk 1:31:21]}  d5 {[%clk 1:31:16]}
4. Nc3 {[%clk 1:31:27]}  c6 {[%clk 1:30:40]} 5. e3 {[%clk 1:30:59]}  Nbd7 {[%clk 1:31:03]} 6. Bd3 {[%clk 1:30:32]}  dxc4 {[%clk 1:31:13]}
7. Bxc4 {[%clk 1:30:57]}  b5 {[%clk 1:31:37]} 8. Be2 {[%clk 1:28:12]}  Bd6 {[%clk 1:31:49]} 9. O-O {[%clk 1:27:46]}  O-O {[%clk 1:30:33]}
10. Qc2 {[%clk 1:24:28]}  Bb7 {[%clk 1:30:13]} 11. Rd1 {[%clk 1:23:44]}  Qc7 {[%clk 1:01:58]} 12. Bd2 {[%clk 1:21:18]}  Rac8 {[%clk 0:58:52]}
13. b4 {[%clk 1:09:41]}  Rfe8 {[%clk 0:55:44]} 14. a3 {[%clk 1:06:07]}  e5 {[%clk 0:55:30]} 15. h3 {[%clk 0:55:41]}  a6 {[%clk 0:53:52]}
16. Bd3 {[%clk 0:44:35]}  h6 {[%clk 0:45:20]} 17. Re1 {[%clk 0:36:55]}  Rcd8 {[%clk 0:42:52]} 18. Rac1 {[%clk 0:31:21]}  Bf8 {[%clk 0:38:09]}
19. Ne4 {[%clk 0:26:10]}  Nd5 {[%clk 0:34:27]} 20. Ng3 {[%clk 0:23:48]}  exd4 {[%clk 0:32:02]} 21. exd4 {[%clk 0:23:51]}  Qb8 {[%clk 0:32:09]}
22. Qb3 {[%clk 0:20:13]}  Rxe1+ {[%clk 0:26:33]} 23. Rxe1 {[%clk 0:20:31]}  Re8 {[%clk 0:26:36]} 24. Rc1 {[%clk 0:16:44]}  g6 {[%clk 0:26:07]}
25. Bb1 {[%clk 0:15:58]}  Bg7 {[%clk 0:24:04]} 26. Qc2 {[%clk 0:14:20]}  Nf4 {[%clk 0:18:35]} 27. h4 {[%clk 0:09:09]}  Nf8 {[%clk 0:12:39]}
28. h5 {[%clk 0:07:34]}  Bc8 {[%clk 0:08:40]} 29. hxg6 {[%clk 0:07:34]}  fxg6 {[%clk 0:08:52]} 30. Qxc6 {[%clk 0:04:47]}  Bb7 {[%clk 0:08:07]}
31. Qc7 {[%clk 0:04:47]}  Qxc7 {[%clk 0:05:40]} 32. Rxc7 {[%clk 0:05:15]}  Bxf3 {[%clk 0:06:01]} 33. gxf3 {[%clk 0:02:20]}  N4e6 {[%clk 0:06:15]}
34. Ra7 {[%clk 0:01:19]}  Nxd4 {[%clk 0:05:58]} 35. Kg2 {[%clk 0:01:41]}  Rd8 {[%clk 0:05:50]} 36. Be3 {[%clk 0:01:51]}  h5 {[%clk 0:02:57]}
37. Rxa6 {[%clk 0:01:50]}  h4 {[%clk 0:03:21]} 38. Ne4 {[%clk 0:01:54]}  Nf5 {[%clk 0:03:19]} 39. Bf4 {[%clk 0:01:31]}  Rd1 {[%clk 0:01:00]}
40. Ba2+ {[%clk 0:01:55]}  Kh8 {[%clk 0:01:22]} 41. Ng5 {[%clk 0:01:43]}  Ra1 {[%clk 0:00:43]} 42. Bd5 {[%clk 0:24:02]}  Rd1 {[%clk 0:27:47]}
43. Be4 {[%clk 0:22:10]}  Nd4 {[%clk 0:24:42]} 44. Ra8 {[%clk 0:19:06]}  Ne2 {[%clk 0:24:15]} 45. Bh2 {[%clk 0:17:39]}  Kg8 {[%clk 0:23:16]}
46. Bc2 {[%clk 0:16:07]}  Rd2 {[%clk 0:22:39]} 47. Bb3+ {[%clk 0:16:30]}  Kh8 {[%clk 0:23:08]} 48. Ne6 {[%clk 0:14:35]}  Rd3 {[%clk 0:16:47]}
49. Nxf8 {[%clk 0:07:00]}  Rxb3 {[%clk 0:17:09]} 50. Ne6+ {[%clk 0:06:56]}  Kh7 {[%clk 0:17:34]} 51. Ra7 {[%clk 0:06:46]}  h3+ {[%clk 0:15:31]}
52. Kxh3 {[%clk 0:06:32]}  Rxf3+ {[%clk 0:15:48]} 53. Kg2 {[%clk 0:06:50]}  Rf6 {[%clk 0:16:07]} 54. Nxg7 {[%clk 0:06:14]} 1-0

[Event "2026 European Womens Championship"]
[Site "Batumi, GE"]
[Date "2026.05.27"]
[Round "3"]
[White "Buyuk, Ecrin Efsa"]
[Black "Pogorelskikh, Sofia"]
[Result "0-1"]
[Board "46"]
[TimeControl "5400+30"]
[WhiteFideId "44505175"]
[BlackFideId "44164548"]
[WhiteElo "2076"]
[BlackElo "2284"]
[WhiteTitle "WFM"]
[BlackTitle "WGM"]
[WhiteClock "0:00:42"]
[BlackClock "0:06:20"]
[Variant "Standard"]

1. e4 {[%clk 1:30:58]}  c5 {[%clk 1:30:14]} 2. Nc3 {[%clk 1:31:24]}  Nc6 {[%clk 1:29:46]} 3. Nge2 {[%clk 1:31:50]}  g6 {[%clk 1:29:35]}
4. d4 {[%clk 1:32:05]}  cxd4 {[%clk 1:29:47]} 5. Nxd4 {[%clk 1:32:31]}  Bg7 {[%clk 1:29:58]} 6. Nde2 {[%clk 1:32:57]}  Nf6 {[%clk 1:29:10]}
7. g3 {[%clk 1:32:46]}  b5 {[%clk 1:28:22]} 8. Bg2 {[%clk 1:32:07]}  b4 {[%clk 1:27:48]} 9. Nd5 {[%clk 1:27:42]}  a5 {[%clk 1:19:50]}
10. O-O {[%clk 1:19:28]}  Rb8 {[%clk 1:13:33]} 11. a3 {[%clk 1:17:04]}  O-O {[%clk 1:09:06]} 12. axb4 {[%clk 1:17:19]}  axb4 {[%clk 1:08:50]}
13. Bg5 {[%clk 1:14:20]}  Ng4 {[%clk 0:57:00]} 14. h3 {[%clk 1:04:11]}  Nge5 {[%clk 0:52:39]} 15. b3 {[%clk 0:33:30]}  h6 {[%clk 0:49:19]}
16. Be3 {[%clk 0:33:47]}  e6 {[%clk 0:45:32]} 17. Ndf4 {[%clk 0:32:46]}  d6 {[%clk 0:42:17]} 18. Qd2 {[%clk 0:26:39]}  Qc7 {[%clk 0:36:45]}
19. Ra2 {[%clk 0:26:32]}  Bb7 {[%clk 0:33:21]} 20. Nd3 {[%clk 0:23:51]}  Kh7 {[%clk 0:25:35]} 21. Nb2 {[%clk 0:03:57]}  Rfd8 {[%clk 0:20:24]}
22. f4 {[%clk 0:04:00]}  Nd7 {[%clk 0:20:07]} 23. f5 {[%clk 0:02:40]}  Nce5 {[%clk 0:17:57]} 24. fxe6 {[%clk 0:02:32]}  fxe6 {[%clk 0:18:20]}
25. Na4 {[%clk 0:01:23]}  Nc5 {[%clk 0:15:54]} 26. Nxc5 {[%clk 0:00:56]}  dxc5 {[%clk 0:16:17]} 27. Qe1 {[%clk 0:01:02]}  Rd7 {[%clk 0:11:08]}
28. Nf4 {[%clk 0:01:12]}  Re8 {[%clk 0:10:57]} 29. g4 {[%clk 0:01:11]}  c4 {[%clk 0:09:37]} 30. g5 {[%clk 0:01:00]}  hxg5 {[%clk 0:09:16]}
31. Ne2 {[%clk 0:00:40]}  cxb3 {[%clk 0:09:23]} 32. Ra7 {[%clk 0:00:42]}  bxc2 {[%clk 0:08:25]} 33. h4 {[%clk 0:00:54]}  Ng4 {[%clk 0:07:26]}
34. Nf4 {[%clk 0:00:48]}  Nxe3 {[%clk 0:06:26]} 35. hxg5 {[%clk 0:00:47]}  Nxf1 {[%clk 0:05:59]} 36. Qh4+ {[%clk 0:00:42]}  Kg8 {[%clk 0:06:20]} 0-1

[Event "2026 European Womens Championship"]
[Site "Batumi, GE"]
[Date "2026.05.27"]
[Round "3"]
[White "Akat, Elifnaz"]
[Black "Urh, Zala"]
[Result "1/2-1/2"]
[Board "47"]
[TimeControl "5400+30"]
[WhiteFideId "34560556"]
[BlackFideId "14611481"]
[WhiteElo "2061"]
[BlackElo "2263"]
[WhiteTitle "WFM"]
[BlackTitle "WIM"]
[WhiteClock "0:10:27"]
[BlackClock "0:03:00"]
[Variant "Standard"]

1. e4 {[%clk 1:30:58]}  c5 {[%clk 1:30:54]} 2. Nf3 {[%clk 1:31:27]}  e6 {[%clk 1:31:11]} 3. g3 {[%clk 1:31:38]}  d5 {[%clk 1:31:33]}
4. exd5 {[%clk 1:31:50]}  exd5 {[%clk 1:31:56]} 5. d4 {[%clk 1:32:01]}  Nc6 {[%clk 1:31:41]} 6. Bg2 {[%clk 1:31:38]}  cxd4 {[%clk 1:32:03]}
7. Nxd4 {[%clk 1:31:38]}  Bc5 {[%clk 1:32:26]} 8. Ne2 {[%clk 1:26:48]}  Nf6 {[%clk 1:26:56]} 9. O-O {[%clk 1:24:16]}  O-O {[%clk 1:23:04]}
10. Nbc3 {[%clk 1:23:08]}  Re8 {[%clk 1:10:56]} 11. Bg5 {[%clk 1:17:00]}  d4 {[%clk 0:57:59]} 12. Ne4 {[%clk 1:01:16]}  Be7 {[%clk 0:58:08]}
13. Nxf6+ {[%clk 0:57:26]}  Bxf6 {[%clk 0:58:32]} 14. Bxf6 {[%clk 0:57:54]}  Qxf6 {[%clk 0:58:55]} 15. Nf4 {[%clk 0:58:01]}  Bf5 {[%clk 0:55:28]}
16. Qd2 {[%clk 0:53:48]}  Rac8 {[%clk 0:51:28]} 17. Rfe1 {[%clk 0:50:01]}  Red8 {[%clk 0:47:55]} 18. Rac1 {[%clk 0:48:00]}  Qd6 {[%clk 0:40:12]}
19. a3 {[%clk 0:44:13]}  b6 {[%clk 0:38:28]} 20. Nd5 {[%clk 0:39:15]}  h6 {[%clk 0:35:53]} 21. c4 {[%clk 0:33:58]}  Kf8 {[%clk 0:21:03]}
22. b4 {[%clk 0:30:18]}  d3 {[%clk 0:19:08]} 23. Qc3 {[%clk 0:27:42]}  Re8 {[%clk 0:19:07]} 24. f4 {[%clk 0:27:38]}  Ne7 {[%clk 0:16:05]}
25. Re5 {[%clk 0:27:18]}  f6 {[%clk 0:06:23]} 26. Nxe7 {[%clk 0:19:53]}  Rxe7 {[%clk 0:06:49]} 27. Rxf5 {[%clk 0:19:43]}  d2 {[%clk 0:06:54]}
28. Rd1 {[%clk 0:19:56]}  Qe6 {[%clk 0:07:03]} 29. Qc2 {[%clk 0:16:26]}  Rxc4 {[%clk 0:01:17]} 30. Qxd2 {[%clk 0:14:26]}  Qxf5 {[%clk 0:01:42]}
31. Qd8+ {[%clk 0:14:54]}  Re8 {[%clk 0:02:06]} 32. Qd6+ {[%clk 0:15:21]}  Re7 {[%clk 0:02:34]} 33. Qd8+ {[%clk 0:10:27]}  Re8 {[%clk 0:03:00]} 1/2-1/2

[Event "2026 European Womens Championship"]
[Site "Batumi, GE"]
[Date "2026.05.27"]
[Round "3"]
[White "Dimitrijevic, Aleksandra"]
[Black "Szczotka, Klara"]
[Result "0-1"]
[Board "48"]
[TimeControl "5400+30"]
[WhiteFideId "929239"]
[BlackFideId "21858845"]
[WhiteElo "2059"]
[BlackElo "2241"]
[WhiteTitle "WGM"]
[BlackTitle "WFM"]
[WhiteClock "0:14:10"]
[BlackClock "0:00:34"]
[Variant "Standard"]

1. d4 {[%clk 1:28:12]}  Nf6 {[%clk 1:30:54]} 2. c4 {[%clk 1:28:35]}  e6 {[%clk 1:31:18]} 3. g3 {[%clk 1:29:01]}  d5 {[%clk 1:31:40]}
4. Nf3 {[%clk 1:29:26]}  c6 {[%clk 1:31:58]} 5. Bg2 {[%clk 1:29:42]}  dxc4 {[%clk 1:31:46]} 6. Ne5 {[%clk 1:27:54]}  b5 {[%clk 1:26:47]}
7. a4 {[%clk 1:06:25]}  Nd5 {[%clk 1:18:24]} 8. e4 {[%clk 1:06:03]}  Nb4 {[%clk 1:16:31]} 9. O-O {[%clk 1:02:35]}  Bb7 {[%clk 1:10:15]}
10. Nc3 {[%clk 1:01:32]}  Nd7 {[%clk 0:57:59]} 11. Nf3 {[%clk 0:55:11]}  Be7 {[%clk 0:55:55]} 12. axb5 {[%clk 0:52:45]}  cxb5 {[%clk 0:56:08]}
13. Nxb5 {[%clk 0:52:14]}  Bxe4 {[%clk 0:49:59]} 14. Bg5 {[%clk 0:51:18]}  O-O {[%clk 0:43:09]} 15. Bxe7 {[%clk 0:45:59]}  Qxe7 {[%clk 0:43:28]}
16. Re1 {[%clk 0:46:18]}  Nf6 {[%clk 0:37:54]} 17. Nc3 {[%clk 0:44:02]}  Bc6 {[%clk 0:28:13]} 18. d5 {[%clk 0:34:10]}  Nfxd5 {[%clk 0:19:30]}
19. Ne5 {[%clk 0:33:42]}  Bb7 {[%clk 0:19:19]} 20. Ne4 {[%clk 0:30:12]}  Rfc8 {[%clk 0:12:26]} 21. Qd2 {[%clk 0:16:51]}  f6 {[%clk 0:11:22]}
22. Nf3 {[%clk 0:09:31]}  Nd3 {[%clk 0:11:09]} 23. Re2 {[%clk 0:09:54]}  Rd8 {[%clk 0:08:22]} 24. Qc2 {[%clk 0:09:44]}  Nb6 {[%clk 0:07:55]}
25. Bh3 {[%clk 0:08:21]}  Bd5 {[%clk 0:06:21]} 26. Nd4 {[%clk 0:07:55]}  e5 {[%clk 0:05:15]} 27. Nf5 {[%clk 0:08:02]}  Qf8 {[%clk 0:05:20]}
28. Nc3 {[%clk 0:06:06]}  Bc6 {[%clk 0:04:33]} 29. b3 {[%clk 0:05:46]}  g6 {[%clk 0:03:51]} 30. Ne3 {[%clk 0:06:05]}  f5 {[%clk 0:03:56]}
31. bxc4 {[%clk 0:05:43]}  e4 {[%clk 0:02:41]} 32. Rb1 {[%clk 0:02:57]}  Qc5 {[%clk 0:02:24]} 33. Qa2 {[%clk 0:03:07]}  Ne5 {[%clk 0:02:08]}
34. Bg2 {[%clk 0:01:56]}  Rd3 {[%clk 0:01:59]} 35. Ncd5 {[%clk 0:01:21]}  Nxd5 {[%clk 0:01:20]} 36. cxd5 {[%clk 0:01:37]}  Bxd5 {[%clk 0:01:17]}
37. Qa1 {[%clk 0:01:50]}  Bf7 {[%clk 0:00:39]} 38. Rc2 {[%clk 0:01:44]}  Qd6 {[%clk 0:00:44]} 39. Rbc1 {[%clk 0:01:51]}  Rd8 {[%clk 0:00:32]}
40. Qxa7 {[%clk 0:01:58]}  Rd7 {[%clk 0:00:37]} 41. Qa1 {[%clk 0:01:32]}  Ra3 {[%clk 0:00:34]} 42. Rc8+ {[%clk 0:01:42]}  Kg7 {[%clk 0:00:37]}
43. Qb2 {[%clk 0:02:06]}  Ra2 {[%clk 0:25:26]} 44. Qb5 {[%clk 0:31:10]}  Nd3 {[%clk 0:14:05]} 45. Rf1 {[%clk 0:30:51]}  Rb2 {[%clk 0:12:21]}
46. Qa5 {[%clk 0:30:09]}  Be6 {[%clk 0:09:04]} 47. Qc3+ {[%clk 0:29:36]}  Qd4 {[%clk 0:08:56]} 48. Qa3 {[%clk 0:28:17]}  Qb4 {[%clk 0:07:54]}
49. Qa1 {[%clk 0:28:28]}  Qd4 {[%clk 0:06:31]} 50. Qa3 {[%clk 0:28:48]}  Rf7 {[%clk 0:06:31]} 51. Rc6 {[%clk 0:28:43]}  Rxf2 {[%clk 0:02:56]}
52. Rxf2 {[%clk 0:26:00]}  Qxe3 {[%clk 0:02:41]} 53. Qa1+ {[%clk 0:25:47]}  Rf6 {[%clk 0:01:11]} 54. Rcc2 {[%clk 0:24:34]}  Nxf2 {[%clk 0:01:13]}
55. Rxf2 {[%clk 0:24:59]}  g5 {[%clk 0:01:15]} 56. Qe5 {[%clk 0:24:56]}  h5 {[%clk 0:00:48]} 57. Bh3 {[%clk 0:22:01]}  Kg6 {[%clk 0:00:34]}
58. Bg2 {[%clk 0:21:28]}  Bf7 {[%clk 0:00:36]} 59. h4 {[%clk 0:20:52]}  gxh4 {[%clk 0:00:35]} 60. gxh4 {[%clk 0:21:16]}  Be6 {[%clk 0:00:32]}
61. Bf3 {[%clk 0:19:33]}  Qe1+ {[%clk 0:00:40]} 62. Rf1 {[%clk 0:19:35]}  Qxh4 {[%clk 0:00:55]} 63. Bg2 {[%clk 0:19:07]}  Bf7 {[%clk 0:00:42]}
64. Rf4 {[%clk 0:19:21]}  Qg5 {[%clk 0:00:53]} 65. Kh2 {[%clk 0:15:44]}  Re6 {[%clk 0:00:52]} 66. Qb8 {[%clk 0:15:29]}  h4 {[%clk 0:00:46]}
67. Bf1 {[%clk 0:15:19]}  Qg3+ {[%clk 0:00:36]} 68. Kh1 {[%clk 0:15:42]}  Kg5 {[%clk 0:00:36]} 69. Qd8+ {[%clk 0:13:54]}  Kxf4 {[%clk 0:00:42]}
70. Qc7+ {[%clk 0:14:19]}  Kf3 {[%clk 0:00:34]} 71. Be2+ {[%clk 0:14:01]}  Kf2 {[%clk 0:00:34]} 72. Qc2 {[%clk 0:14:10]} 0-1

[Event "2026 European Womens Championship"]
[Site "Batumi, GE"]
[Date "2026.05.27"]
[Round "3"]
[White "Purtseladze, Maka"]
[Black "Hayrapetyan, Nvard"]
[Result "1-0"]
[Board "49"]
[TimeControl "5400+30"]
[WhiteFideId "13602659"]
[BlackFideId "13316460"]
[WhiteElo "2237"]
[BlackElo "2057"]
[WhiteTitle "IM"]
[BlackTitle "WFM"]
[WhiteClock "0:16:07"]
[BlackClock "0:24:33"]
[Variant "Standard"]

1. d4 {[%clk 1:30:49]}  Nf6 {[%clk 1:30:57]} 2. Nf3 {[%clk 1:31:00]}  e6 {[%clk 1:31:20]} 3. c4 {[%clk 1:31:26]}  d5 {[%clk 1:31:47]}
4. Nc3 {[%clk 1:31:45]}  Bb4 {[%clk 1:32:12]} 5. Bg5 {[%clk 1:32:05]}  h6 {[%clk 1:32:37]} 6. Bxf6 {[%clk 1:32:18]}  Qxf6 {[%clk 1:33:02]}
7. e3 {[%clk 1:32:39]}  O-O {[%clk 1:33:17]} 8. Rc1 {[%clk 1:32:48]}  Rd8 {[%clk 1:25:00]} 9. Qb3 {[%clk 1:26:44]}  Nc6 {[%clk 1:18:33]}
10. a3 {[%clk 1:14:39]}  dxc4 {[%clk 1:16:16]} 11. Bxc4 {[%clk 1:12:09]}  Bd6 {[%clk 1:14:37]} 12. Bb5 {[%clk 1:03:47]}  Qg6 {[%clk 1:09:08]}
13. O-O {[%clk 0:59:08]}  Bd7 {[%clk 1:02:59]} 14. Rfd1 {[%clk 0:54:22]}  Rab8 {[%clk 0:56:06]} 15. Bd3 {[%clk 0:52:26]}  Qh5 {[%clk 0:54:48]}
16. Ne4 {[%clk 0:52:15]}  Na5 {[%clk 0:51:32]} 17. Qc3 {[%clk 0:50:27]}  Ba4 {[%clk 0:49:51]} 18. Re1 {[%clk 0:42:30]}  Nb3 {[%clk 0:40:09]}
19. Bc2 {[%clk 0:36:41]}  Nxc1 {[%clk 0:38:27]} 20. Bxa4 {[%clk 0:36:49]}  Bxh2+ {[%clk 0:37:00]} 21. Kf1 {[%clk 0:34:42]}  Na2 {[%clk 0:31:56]}
22. Qc2 {[%clk 0:23:49]}  Bd6 {[%clk 0:28:04]} 23. Bb3 {[%clk 0:27:55]}  Nb4 {[%clk 0:27:39]} 24. axb4 {[%clk 0:28:19]}  Bxb4 {[%clk 0:27:50]}
25. Ra1 {[%clk 0:26:14]}  Qb5+ {[%clk 0:21:25]} 26. Bc4 {[%clk 0:24:00]}  Qb6 {[%clk 0:19:57]} 27. Qa4 {[%clk 0:22:48]}  a5 {[%clk 0:19:37]}
28. Ne5 {[%clk 0:18:04]}  c6 {[%clk 0:16:47]} 29. Nd3 {[%clk 0:17:54]}  Ra8 {[%clk 0:11:46]} 30. Nxb4 {[%clk 0:11:08]}  Qxb4 {[%clk 0:12:02]}
31. Qxb4 {[%clk 0:10:37]}  axb4 {[%clk 0:12:31]} 32. Rc1 {[%clk 0:11:00]}  Ra5 {[%clk 0:09:17]} 33. Nc5 {[%clk 0:10:26]}  b6 {[%clk 0:09:20]}
34. Nd3 {[%clk 0:09:24]}  c5 {[%clk 0:08:29]} 35. dxc5 {[%clk 0:08:30]}  bxc5 {[%clk 0:08:31]} 36. Ke2 {[%clk 0:08:40]}  Kf8 {[%clk 0:07:54]}
37. Ne5 {[%clk 0:04:09]}  Rc8 {[%clk 0:06:43]} 38. Rd1 {[%clk 0:04:18]}  Ra7 {[%clk 0:06:32]} 39. Rd6 {[%clk 0:04:13]}  Rac7 {[%clk 0:03:51]}
40. Ra6 {[%clk 0:02:13]}  g5 {[%clk 0:03:05]} 41. g4 {[%clk 0:01:22]}  Kg7 {[%clk 0:02:45]} 42. b3 {[%clk 0:28:10]}  Rh8 {[%clk 0:31:11]}
43. Nd3 {[%clk 0:24:45]}  h5 {[%clk 0:29:49]} 44. gxh5 {[%clk 0:25:04]}  Rxh5 {[%clk 0:30:13]} 45. Kf3 {[%clk 0:21:55]}  Rh8 {[%clk 0:29:11]}
46. Ra5 {[%clk 0:21:06]}  Rhc8 {[%clk 0:29:04]} 47. Ba6 {[%clk 0:17:02]}  Ra8 {[%clk 0:26:19]} 48. Rxc5 {[%clk 0:17:26]}  Rxc5 {[%clk 0:26:04]}
49. Nxc5 {[%clk 0:17:52]}  Kf6 {[%clk 0:23:38]} 50. Bc4 {[%clk 0:17:41]}  Ke7 {[%clk 0:23:10]} 51. Na6 {[%clk 0:17:40]}  f5 {[%clk 0:22:22]}
52. Nxb4 {[%clk 0:17:10]}  e5 {[%clk 0:22:38]} 53. e4 {[%clk 0:16:51]}  f4 {[%clk 0:22:23]} 54. Kg4 {[%clk 0:16:45]}  Kf6 {[%clk 0:22:35]}
55. Nd5+ {[%clk 0:15:11]}  Kg6 {[%clk 0:21:51]} 56. Nb6 {[%clk 0:12:01]}  Ra2 {[%clk 0:20:42]} 57. Kf3 {[%clk 0:11:42]}  Kh5 {[%clk 0:13:57]}
58. Be6 {[%clk 0:11:12]}  Ra6 {[%clk 0:14:08]} 59. Bg4+ {[%clk 0:10:54]}  Kh4 {[%clk 0:14:36]} 60. Nc4 {[%clk 0:10:28]}  Ra3 {[%clk 0:14:02]}
61. Bd7 {[%clk 0:06:30]}  Rxb3+ {[%clk 0:13:47]} 62. Kg2 {[%clk 0:06:39]}  Rb4 {[%clk 0:12:42]} 63. Nxe5 {[%clk 0:06:13]}  Rxe4 {[%clk 0:12:52]}
64. Nf3+ {[%clk 0:06:22]}  Kh5 {[%clk 0:13:15]} 65. Kh3 {[%clk 0:06:33]}  Re2 {[%clk 0:12:26]} 66. Nh2 {[%clk 0:06:04]}  Rxf2 {[%clk 0:12:04]}
67. Be8+ {[%clk 0:06:28]}  Kh6 {[%clk 0:12:20]} 68. Ng4+ {[%clk 0:06:54]}  Kg7 {[%clk 0:12:46]} 69. Nxf2 {[%clk 0:07:19]}  Kf6 {[%clk 0:13:12]}
70. Kg4 {[%clk 0:07:45]}  Ke5 {[%clk 0:13:38]} 71. Nh3 {[%clk 0:08:10]}  Ke4 {[%clk 0:14:02]} 72. Nxg5+ {[%clk 0:08:34]}  Ke3 {[%clk 0:14:29]}
73. Bc6 {[%clk 0:08:56]}  f3 {[%clk 0:14:51]} 74. Nxf3 {[%clk 0:09:19]}  Kd3 {[%clk 0:15:13]} 75. Kf4 {[%clk 0:09:43]}  Kc3 {[%clk 0:15:40]}
76. Ke4 {[%clk 0:09:55]}  Kb2 {[%clk 0:16:05]} 77. Kd3 {[%clk 0:10:19]}  Kb3 {[%clk 0:16:32]} 78. Nd2+ {[%clk 0:10:34]}  Ka2 {[%clk 0:16:56]}
79. Kc3 {[%clk 0:10:49]}  Ka1 {[%clk 0:17:21]} 80. Nb3+ {[%clk 0:11:02]}  Ka2 {[%clk 0:17:46]} 81. Be4 {[%clk 0:11:25]}  Ka3 {[%clk 0:18:12]}
82. Bb1 {[%clk 0:11:07]}  Ka4 {[%clk 0:18:40]} 83. Nd4 {[%clk 0:11:27]}  Ka3 {[%clk 0:19:05]} 84. Nb5+ {[%clk 0:11:53]}  Ka4 {[%clk 0:19:33]}
85. Kc4 {[%clk 0:12:18]}  Ka5 {[%clk 0:20:01]} 86. Kc5 {[%clk 0:12:41]}  Ka4 {[%clk 0:20:28]} 87. Bc2+ {[%clk 0:13:06]}  Ka5 {[%clk 0:20:56]}
88. Nd6 {[%clk 0:13:14]}  Ka6 {[%clk 0:21:22]} 89. Bd1 {[%clk 0:13:28]}  Ka5 {[%clk 0:21:50]} 90. Nb7+ {[%clk 0:13:51]}  Ka6 {[%clk 0:22:16]}
91. Kc6 {[%clk 0:14:16]}  Ka7 {[%clk 0:22:45]} 92. Kc7 {[%clk 0:14:35]}  Ka6 {[%clk 0:23:13]} 93. Be2+ {[%clk 0:15:00]}  Ka7 {[%clk 0:23:40]}
94. Nd6 {[%clk 0:15:15]}  Ka8 {[%clk 0:24:06]} 95. Bf1 {[%clk 0:15:40]}  Ka7 {[%clk 0:24:33]} 96. Nc8+ {[%clk 0:16:07]} 1-0